fUSD/lending_fUSD_20240205
["ID","MTS","AMOUNT","RATE_DAILY","PERIOD"]
[313296950,1707109840887,-663.62661114,0.0003278,5]
[313296951,1707109840896,-313.58,0.00034495,2]
[313296952,1707109840905,-433.61879754,0.00034742,10]
[313296953,1707109840915,-268.56267463,0.00034742,10]
[313296954,1707109840924,-157.91764544,0.00034901,2]
[313296955,1707109840934,-163.48,0.00035018,2]
[313296956,1707109840943,-396.18,0.00035018,2]
[313296957,1707109840953,-250.0,0.00035041,2]
[313296958,1707109840962,-1000.0,0.00035076,2]
[313296959,1707109840971,-200.0,0.000351,2]
[313296960,1707109840981,-500.0,0.00035103,2]
[313296961,1707109840989,-250.0,0.00035293,2]
[313296962,1707109840999,-23900.0,0.00035328,2]
[313296963,1707109841009,-11525.86,0.00035367,2]
[313296964,1707109841018,-231.06,0.00035367,2]
[313296965,1707109841027,-1000.0,0.00035367,2]
[313296966,1707109841036,-150.0,0.0003538,2]
[313296967,1707109841045,-150.1,0.00035534,2]
[313296968,1707109841053,-8834.29741109,0.00035616,10]
[313296969,1707109841063,-150.1,0.00035703,2]
[313296970,1707109841072,-150.1,0.00035871,2]
[313296971,1707109841081,-707.95,0.00035952,2]
[313296972,1707109841090,-559.41,0.00036,2]
[313296973,1707109841099,-2917.0,0.00036034,2]
[313296974,1707109841108,-2282.0,0.00036034,2]
[313296975,1707109841117,-150.1,0.00036039,2]
[313296976,1707109841126,-2867.0,0.00036083,2]
[313296977,1707109841135,-839.0,0.00036083,2]
[313296978,1707109841144,-991.666,0.00036083,2]
[313296979,1707109841153,-500.0,0.00036143,2]
[313296980,1707109841161,-150.1,0.00036208,2]
[313296981,1707109841170,-1176.93,0.00036357,2]
[313296982,1707109841179,-150.1,0.00036376,2]
[313296983,1707109841189,-230.12,0.00036412,2]
[313296984,1707109841199,-150.1,0.00036544,2]
[313296985,1707109841207,-150.1,0.00036712,2]
[313296986,1707109841216,-313.58,0.00036759,2]
[313296987,1707109841225,-150.1,0.00036881,2]
[313296988,1707109841234,-185.97,0.00036907,2]
[313296989,1707109841243,-150.1,0.00037049,2]
[313296990,1707109841252,-165.96,0.00037147,2]
[313296991,1707109841261,-150.1,0.00037217,2]
[313296992,1707109841270,-150.1,0.00037386,2]
[313296993,1707109841279,-707.95,0.00037596,2]
[313296994,1707109841288,-252.66059671,0.000378,4]
[313296995,1707109841298,-150.0,0.00038356,2]
[313296996,1707109841307,-163.48,0.0003852,2]
[313296997,1707109841316,-180.0,0.00038848,2]
[313296998,1707109841324,-158.16987477,0.0003888,2]
[313296999,1707109841333,-158.16987477,0.0003888,2]
[313297000,1707109841342,-842.31368923,0.00039,2]
[313297001,1707109841352,-313.58,0.00039023,2]
[313297002,1707109841360,-707.95,0.0003924,2]
[313297003,1707109841369,-150.0,0.00039366,2]
[313297004,1707109841378,-1000.0,0.0003946,2]
[313297005,1707109841387,-936.86369339,0.00039471,9]
[313297006,1707109841397,-13683.6407,0.00039475,2]
[313297007,1707109841406,-500.0,0.00039475,2]
[313297008,1707109841415,-266.25983194,0.00039566,4]
[313297009,1707109841424,-94180.33251424,0.00039571,4]
[313297010,1707109841485,-391.76,0.00039571,4]
[313297017,1707109842930,-303.05284449,0.00022899,2]
[313297019,1707109842940,-16327.8736043,0.00039571,4]
[313297021,1707109842949,-253.20116087,0.00039571,4]
[313297022,1707109842958,-361.78211809,0.00039572,4]
[313297023,1707109842967,-4712.24174168,0.00039572,4]
[313297024,1707109842976,-9384.75743651,0.00039573,4]
[313297025,1707109842988,-278.02097649,0.00039573,4]
[313297026,1707109842999,-886.32444843,0.00039573,4]
[313297027,1707109843009,-271.83505795,0.00039573,4]
[313297028,1707109843021,-2228.56726238,0.00039573,4]
[313297029,1707109843030,-3795.67194783,0.00039573,4]
[313297030,1707109843038,-292.00859784,0.00039574,4]
[313297031,1707109843047,-1093.62170514,0.00039574,4]
[313297032,1707109843058,-119.00214978,0.00039574,4]
[313297033,1707109843068,-210.0,0.00039972,2]
[313297034,1707109843076,-693.64845955,0.0004,9]
[313297035,1707109843087,-309.51804615,0.0004,9]
[313297036,1707109843098,-17.8334943,0.0004,9]
[313297037,1707109843107,-627.0,0.0004,7]
[313297038,1707109843116,-158.16987477,0.00040245,2]
[313297039,1707109843125,-150.0,0.00040375,2]
[313297040,1707109843134,-357.83,0.000404,7]
[313297041,1707109843143,-60.36281852,0.00040883,2]
[313297042,1707109843158,-400.30481951,0.00040883,2]
[313297043,1707109843169,-247.28236197,0.00040883,2]
[313297044,1707109843178,-157.91764544,0.00040952,2]
[313297045,1707109843189,-105.18063872,0.00040998,10]
[313297046,1707109843201,-831.68305462,0.00040998,10]
[313297047,1707109843209,-500.0,0.000411,2]
[313297048,1707109843218,-227.80583058,0.0004116,3]
[313297049,1707109843230,-898.17017497,0.0004116,3]
[313297050,1707109843239,-891.04363949,0.000412,5]
[313297051,1707109843250,-108.95636051,0.000412,5]
[313297052,1707109843259,-313.58,0.00041286,2]
[313297053,1707109843268,-1000.0,0.000413,30]
[313297054,1707109843277,-345.0,0.000413,30]
[313297055,1707109843286,-150.0,0.00041384,2]
[313297056,1707109843296,-151.14314893,0.0004158,2]
[313297057,1707109843305,-800.0,0.00041624,10]
[313297058,1707109843313,-200.0,0.00041625,7]
[313297059,1707109843322,-294.9882725,0.00041625,10]
[313297060,1707109843342,-505.0117275,0.00041625,10]
[313297061,1707109843351,-800.0,0.00041625,10]
[313297062,1707109843360,-255.0,0.0004179,12]
[313297064,1707109843370,-933.40383215,0.0004189,11]
[313297065,1707109843381,-352.89273526,0.0004189,11]
[313297066,1707109843392,-5710.75717301,0.0004189,11]
[313297067,1707109843401,-100000.0,0.000419,2]
[313297068,1707109843410,-1000.0,0.000419,2]
[313297069,1707109843419,-1000.0,0.000419,30]
[313297070,1707109843428,-522.3511126,0.00041928,2]
[313297071,1707109843439,-249.86559,0.00041928,30]
[313297072,1707109843448,-500.0,0.00041928,120]
[313297073,1707109843457,-6997.05374042,0.0004199,11]
[313297074,1707109843466,-1992.26,0.0004199,10]
[313297075,1707109843474,-191.27903606,0.00041996,2]
[313297076,1707109843484,-4204.07147079,0.00042,30]
[313297077,1707109843493,-609.92683892,0.00042,120]
[313297078,1707109843501,-2500.0,0.00042,31]
[313297079,1707109843510,-252.72062988,0.00042,4]
[313297080,1707109843520,-200.0,0.00042,2]
[313297081,1707109843529,-300.0,0.00042,17]
[313297082,1707109843538,-200.0,0.00042,17]
[313297083,1707109843547,-380.562,0.00042,30]
[313297084,1707109843556,-163.48,0.00042022,2]
[313297085,1707109843564,-553.0,0.0004219,2]
[313297086,1707109843573,-8807.0,0.0004229,2]
[313297087,1707109843582,-1696.0,0.0004229,2]
[313297088,1707109843591,-2042.5770206,0.00042336,2]
[313297089,1707109843600,-6997.05374042,0.00042355,11]
[313297090,1707109843609,-367.8700295,0.00042365,2]
[313297091,1707109843618,-14120.05169464,0.00042365,2]
[313297092,1707109843630,-347.18442988,0.00042365,2]
[313297093,1707109843640,-10412.81138858,0.00042365,2]
[313297094,1707109843649,-158.16987477,0.00042376,4]
[313297095,1707109843658,-150.0,0.00042394,2]
[313297096,1707109843667,-657.81618824,0.000425,10]
[313297097,1707109843677,-200.0,0.000425,18]
[313297098,1707109843687,-6997.05374042,0.00042514,11]
[313297099,1707109843696,-936.86369334,0.00042524,10]
[313297100,1707109843704,-707.95,0.00042527,2]
[313297101,1707109843713,-1825.67347967,0.00042625,4]
[313297102,1707109843725,-6997.05374042,0.00042677,11]
[313297103,1707109843734,-3448.26762376,0.00042687,60]
[313297104,1707109843750,-1317.38623165,0.0004189,10]
[313297105,1707109843762,-1793.20376835,0.0004189,10]
[313297106,1707109843771,-1938.04151804,0.00042687,60]
[313297107,1707109843782,-562.92771398,0.00042687,60]
[313297108,1707109843795,-2996.31150085,0.00042687,60]
[313297132,1707109846077,-200.0,0.00042,2]
[313297134,1707109846086,-227.39,0.00042687,60]
[313297172,1707111032078,-1232.77934096,0.00022799,2]
[313297173,1707111032091,-525.01690073,0.00022799,2]
[313297174,1707111032133,-717.80664463,0.00022799,2]
[313297175,1707111032188,-689.30241408,0.00022799,2]
[313297176,1707111032200,-1059.3612281,0.00022799,2]
[313297177,1707111032211,-891.5205344,0.00022799,2]
[313297178,1707111032224,-623.7749371,0.00022799,2]
[313297179,1707111032233,-157.91764544,0.000254,2]
[313297180,1707111032242,-150.0,0.000255,2]
[313297181,1707111032251,-155.0,0.00033797,2]
[313297182,1707111032260,-2165.95090185,0.00033797,4]
[313297183,1707111032269,-302.1607977,0.00033798,4]
[313297184,1707111032279,-6310.24835581,0.000338,3]
[313297185,1707111032290,-2736.38052767,0.000338,3]
[313297186,1707111032305,-562.43544538,0.000338,3]
[313297187,1707111032316,-1101.33165979,0.000338,3]
[313297188,1707111032329,-985.09067391,0.000338,3]
[313297189,1707111032357,-298.69050621,0.000338,3]
[313297190,1707111032369,-3937.39106229,0.000338,3]
[313297191,1707111032381,-203.43176894,0.000338,3]
[313297192,1707111032390,-165.86255071,0.000338,3]
[313297199,1707111038111,-2072.13744929,0.000338,3]
[313297200,1707111038122,-354.77901617,0.00034742,10]
[313297201,1707111038131,-477.66470947,0.00038036,2]
[313297202,1707111038142,-833.2277294,0.00038036,2]
[313297203,1707111038166,-1606.10756113,0.00038036,2]
[313297204,1707111038175,-118.95433387,0.00038036,2]
[313297205,1707111038224,-544.20527784,0.00038036,2]
[313297206,1707111038235,-630.71748266,0.00038036,2]
[313297207,1707111038246,-399.34104381,0.00038036,2]
[313297208,1707111038328,-588.78186182,0.00038036,2]
[313297209,1707111038337,-32.8881716,0.00038036,2]
[313297210,1707111038383,-714.30152467,0.00038036,2]
[313297211,1707111038394,-2119.81030373,0.00038036,2]
[313297212,1707111038402,-30.35534966,0.00038825,2]
[313297213,1707111038414,-289.37465034,0.00038825,2]
[313297214,1707111038423,-842.31368923,0.00039374,2]
[313297215,1707111038432,-500.0,0.00039375,2]
[313297216,1707111038441,-293.7139,0.00039471,2]
[313297217,1707111038450,-248.4701377,0.00039571,4]
[313297218,1707111038460,-674.81201664,0.00039571,4]
[313297219,1707111038470,-378.8533661,0.00039571,4]
[313297220,1707111038479,-247.24045899,0.00039572,4]
[313297221,1707111038489,-263.94356738,0.00039573,4]
[313297222,1707111038498,-3250.25422535,0.000405,7]
[313297238,1707111040652,-5426.30027645,0.000405,7]
[313297239,1707111040664,-843.56738472,0.000405,7]
[313297240,1707111040675,-5743.79673537,0.000405,7]
[313297241,1707111040761,-713.6500075,0.000405,7]
[313297242,1707111041444,-4022.43137061,0.000405,7]
[313297243,1707111041454,-438.34,0.00040535,2]
[313297244,1707111041463,-216.79,0.00040682,2]
[313297245,1707111041472,-292.16,0.000407,7]
[313297246,1707111041482,-150.0,0.00040735,2]
[313297247,1707111041491,-158.5,0.00040845,2]
[313297248,1707111041500,-198.09,0.00040897,2]
[313297249,1707111041509,-250.0,0.00040939,2]
[313297250,1707111041518,-170.87,0.0004094,2]
[313297251,1707111041527,-250.0,0.0004096,2]
[313297252,1707111041536,-13010.65,0.00040995,2]
[313297253,1707111041545,-20000.0,0.00041,7]
[313297254,1707111041554,-150.0,0.00041041,2]
[313297255,1707111041563,-319.73,0.00041089,2]
[313297256,1707111041572,-150.1,0.00041221,2]
[313297257,1707111041581,-400.0,0.00041222,2]
[313297258,1707111041589,-185.97,0.00041292,2]
[313297259,1707111041599,-672.21938,0.000417,20]
[313297260,1707111041607,-380.0,0.000417,30]
[313297261,1707111041616,-5000.0,0.0004178,7]
[313297262,1707111041625,-150.0,0.00041823,2]
[313297263,1707111041634,-200.0,0.00041906,7]
[313297264,1707111041643,-10000.0,0.00041936,30]
[313297265,1707111041652,-150.0,0.00041936,30]
[313297266,1707111041661,-150.1,0.00041937,2]
[313297267,1707111041671,-2000.0,0.00042,120]
[313297268,1707111041680,-2000.0,0.00042,120]
[313297269,1707111041689,-438.34,0.00042179,2]
[313297270,1707111041698,-800.0,0.00042187,10]
[313297271,1707111041708,-5069.0,0.0004259,2]
[313297272,1707111041717,-200.0,0.000426,18]
[313297273,1707111041726,-300.0,0.000426,18]
[313297274,1707111041735,-150.1,0.00042653,2]
[313297275,1707111041744,-191.27903606,0.00042683,2]
[313297276,1707111041754,-2199.06164337,0.00042687,60]
[313297277,1707111041763,-252.72062988,0.00042687,4]
[313297278,1707111041772,-200.0,0.00042687,2]
[313297279,1707111041781,-874.57285757,0.00042687,4]
[313297280,1707111041790,-500.0,0.00042687,7]
[313297281,1707111041799,-500.0,0.00042687,7]
[313297282,1707111041808,-500.0,0.00042687,7]
[313297283,1707111041817,-800.55764447,0.00042687,12]
[313297284,1707111041826,-17498.0560089,0.00042697,2]
[313297285,1707111041835,-843.9477554,0.00042697,2]
[313297286,1707111041844,-5177.0,0.0004279,2]
[313297287,1707111041853,-552.0,0.0004279,2]
[313297288,1707111041862,-306.5583579,0.00042791,2]
[313297289,1707111041872,-158.16987477,0.00042811,5]
[313297290,1707111041880,-493.7298,0.0004283,2]
[313297291,1707111041889,-19304.9578,0.0004283,2]
[313297292,1707111041898,-150.0,0.00042837,2]
[313297293,1707111041907,-450.78828578,0.0004284,15]
[313297294,1707111041916,-99573.0,0.0004289,2]
[313297295,1707111041925,-1815.0,0.0004289,2]
[313297296,1707111041936,-661.88170386,0.000429,11]
[313297297,1707111041947,-209.43016648,0.000429,19]
[313297298,1707111041956,-14600.1006881,0.00042901,2]
[313297299,1707111041966,-11702.1453674,0.00042911,2]
[313297300,1707111041975,-150.0,0.00042911,2]
[313297301,1707111041985,-90046.52382228,0.0004293,10]
[313297302,1707111041997,-662.68309162,0.0004293,10]
[313297303,1707111042006,-211.08861625,0.0004293,2]
[313297304,1707111042017,-39.95302287,0.0004294,2]
[313297305,1707111042028,-793.57873986,0.0004294,2]
[313297306,1707111042040,-372.03993255,0.0004294,2]
[313297308,1707111043142,-651.01243477,0.0004294,2]
[313297309,1707111043154,-683.34562193,0.0004294,2]
[313297310,1707111043164,-1389.63130811,0.0004294,2]
[313297311,1707111043197,-2390.5060322,0.0004294,2]
[313297312,1707111043253,-4146.79631526,0.0004294,2]
[313297313,1707111043264,-4474.55107622,0.0004294,2]
[313297314,1707111043275,-1002.8370706,0.0004294,2]
[313297315,1707111043307,-432.0,0.0004294,2]
[313297316,1707111043318,-288.71974104,0.0004294,2]
[313297317,1707111043362,-1210.36080118,0.0004294,2]
[313297318,1707111043374,-572.09977409,0.0004294,2]
[313297319,1707111043385,-702.38304042,0.0004294,2]
[313297320,1707111043396,-1525.57672096,0.0004294,2]
[313297321,1707111043407,-291.23162982,0.0004294,2]
[313297322,1707111043471,-142519.60040037,0.0004294,2]
[313297324,1707111046126,-155.0,0.00040499,2]
[313297325,1707111046135,-616.7616583,0.0004293,10]
[313297326,1707111046285,-535.72752799,0.0004293,10]
[313297327,1707111046447,-347.60081371,0.0004293,10]
[313297328,1707111046456,-1811.52704615,0.00042939,4]
[313297345,1707112232285,-150.0,0.00026,2]
[313297346,1707112232295,-1612.08631409,0.00029895,2]
[313297347,1707112232305,-156.90293313,0.00029899,2]
[313297348,1707112232314,-192.02284876,0.000299,2]
[313297349,1707112232324,-155.0,0.0003,2]
[313297350,1707112232333,-156.90293306,0.00031048,2]
[313297351,1707112232343,-156.90293306,0.00032196,2]
[313297352,1707112232353,-156.90293306,0.00033345,2]
[313297353,1707112232362,-156.90293306,0.00034493,2]
[313297354,1707112232372,-300.0,0.00034641,2]
[313297355,1707112232381,-188.896246,0.00034742,10]
[313297356,1707112232391,-164.1216345,0.00034742,10]
[313297357,1707112232401,-156.90293306,0.00035642,2]
[313297358,1707112232411,-156.90293306,0.00036791,2]
[313297359,1707112232421,-156.90293306,0.00037939,2]
[313297360,1707112232430,-156.90293306,0.00039088,2]
[313297361,1707112232440,-328.84,0.00039093,2]
[313297362,1707112232453,-207.32633089,0.00039919,2]
[313297363,1707112232463,-1098.11712502,0.0004003,2]
[313297364,1707112232475,-555.79337352,0.0004003,2]
[313297365,1707112232493,-1213.08950146,0.0004003,2]
[313297366,1707112232502,-87.87990114,0.0004003,2]
[313297367,1707112232514,-2194.12009886,0.0004003,2]
[313297368,1707112232525,-831.26721773,0.0004003,2]
[313297369,1707112232537,-1934.24120179,0.0004003,2]
[313297370,1707112232548,-152.49158048,0.0004003,2]
[313297371,1707112232558,-150.0,0.0004003,2]
[313297372,1707112232568,-152.46,0.00040156,2]
[313297373,1707112232577,-37.26167695,0.00040237,2]
[313297374,1707112232588,-119.64125611,0.00040237,2]
[313297375,1707112232598,-158.5,0.00040262,2]
[313297376,1707112232607,-6.5861057,0.00040262,2]
[313297377,1707112232619,-172.5938943,0.00040262,2]
[313297378,1707112232629,-311.9,0.00040331,4]
[313297379,1707112232638,-1000.0,0.00040448,2]
[313297380,1707112232647,-198.09,0.00040842,2]
[313297381,1707112232656,-155.45,0.00040843,120]
[313297382,1707112232665,-250.0,0.00040937,2]
[313297383,1707112232674,-532.37,0.00040954,2]
[313297384,1707112232684,-962.64421626,0.00041185,2]
[313297385,1707112232693,-170.87,0.00041186,2]
[313297386,1707112232702,-150.0,0.00041193,2]
[313297387,1707112232711,-233.66,0.000412,7]
[313297388,1707112232720,-152.46,0.00041289,2]
[313297389,1707112232729,-150.1,0.00041352,2]
[313297390,1707112232739,-328.84,0.00041356,2]
[313297391,1707112232749,-156.90293306,0.00041385,2]
[313297392,1707112232758,-256.13,0.00041728,2]
[313297393,1707112232767,-5000.0,0.0004178,7]
[313297394,1707112232776,-500.0,0.00041963,120]
[313297395,1707112232786,-150.0,0.00041963,30]
[313297396,1707112232795,-306.764694,0.00042111,7]
[313297397,1707112232804,-152.46,0.00042421,2]
[313297398,1707112232814,-273.06641404,0.000425,30]
[313297399,1707112232823,-2000.0,0.000425,16]
[313297400,1707112232832,-156.90293306,0.00042534,2]
[313297401,1707112232841,-800.0,0.00042597,10]
[313297402,1707112232850,-532.37,0.00042597,2]
[313297403,1707112232859,-170.23003158,0.00042683,2]
[313297404,1707112232869,-327.8410104,0.00042687,4]
[313297405,1707112232879,-365.0,0.0004269,2]
[313297406,1707112232888,-200.42298982,0.00042724,2]
[313297407,1707112232898,-14611.0,0.0004279,2]
[313297408,1707112232907,-287.0,0.0004279,2]
[313297409,1707112232916,-988.14012756,0.0004279,2]
[313297410,1707112232925,-988.14012754,0.0004281,2]
[313297411,1707112232934,-176.95,0.00042815,2]
[313297412,1707112232943,-410.51,0.00042822,2]
[313297413,1707112232952,-257.98,0.00042825,60]
[313297414,1707112232962,-504.85247061,0.00042825,2]
[313297415,1707112232970,-2342.14,0.0004283,10]
[313297416,1707112232980,-988.14012754,0.0004283,2]
[313297417,1707112232989,-1951.78,0.0004283,10]
[313297418,1707112232998,-158.16987477,0.00042833,5]
[313297419,1707112233008,-150.0,0.00042835,2]
[313297420,1707112233018,-152.38460818,0.00042835,2]
[313297421,1707112233027,-1040.16047571,0.00042839,4]
[313297422,1707112233036,-86366.51,0.0004284,2]
[313297423,1707112233045,-46704.0,0.0004289,2]
[313297424,1707112233055,-620.0,0.0004289,2]
[313297425,1707112233064,-200.0,0.000429,18]
[313297426,1707112233073,-96381.0,0.00042919,30]
[313297427,1707112233082,-40832.1218276,0.0004293,11]
[313297428,1707112233091,-211.08861625,0.0004293,2]
[313297429,1707112233101,-27221.4145518,0.00042933,11]
[313297430,1707112233110,-455.5610436,0.00042938,4]
[313297431,1707112233119,-155.8124399,0.00042938,2]
[313297432,1707112233129,-422.38756834,0.00042938,4]
[313297433,1707112233138,-171.81003933,0.00042938,4]
[313297434,1707112233147,-164.15941111,0.00042938,4]
[313297435,1707112233155,-917.18371753,0.00042938,2]
[313297436,1707112233165,-10553.08404704,0.00042938,4]
[313297437,1707112233174,-209.19511292,0.00042938,4]
[313297438,1707112233183,-178.34454767,0.00042938,4]
[313297439,1707112233193,-156.50903036,0.00042938,4]
[313297440,1707112233202,-200.0,0.00042939,2]
[313297441,1707112233211,-916.51819618,0.00042939,2]
[313297442,1707112233221,-2965.41627352,0.00042939,2]
[313297443,1707112233230,-500.0,0.00042939,7]
[313297444,1707112233239,-500.0,0.00042939,7]
[313297445,1707112233249,-500.0,0.00042939,7]
[313297446,1707112233258,-500.0,0.00042939,7]
[313297447,1707112233267,-500.0,0.00042939,7]
[313297448,1707112233277,-500.0,0.00042939,7]
[313297449,1707112233286,-500.0,0.00042939,7]
[313297450,1707112233295,-500.0,0.00042939,7]
[313297451,1707112233304,-500.0,0.00042939,7]
[313297452,1707112233315,-258491.81628986,0.0004294,2]
[313297453,1707112233324,-429.5636577,0.00042942,2]
[313297454,1707112233333,-51042.1910733,0.00042942,2]
[313297455,1707112233342,-2054.0227118,0.00042942,2]
[313297456,1707112233352,-257.98,0.00042962,60]
[313297457,1707112233361,-255.4652982,0.00042971,2]
[313297458,1707112233371,-6805.35363794,0.0004299,11]
[313297459,1707112233380,-442.62528744,0.00043,7]
[313297460,1707112233391,-500.0,0.00043,7]
[313297461,1707112233401,-416.0,0.00043,30]
[313297462,1707112233410,-832.228,0.0004303,2]
[313297463,1707112233419,-257.98,0.00043099,60]
[313297464,1707112233428,-257.98,0.00043236,60]
[313297465,1707112233437,-209.43016648,0.00043277,19]
[313297466,1707112233449,-223.58750295,0.000433,30]
[313297467,1707112233458,-176.95,0.00043363,2]
[313297468,1707112233468,-280.23590753,0.00043373,60]
[313297469,1707112233478,-47637.4754656,0.00043377,11]
[313297470,1707112233487,-103118.100654,0.00043377,10]
[313297471,1707112233496,-152.50350582,0.00043383,2]
[313297472,1707112233506,-833.42085665,0.00043395,14]
[313297473,1707112233515,-200.0,0.000434,19]
[313297474,1707112233525,-150.1,0.00043507,2]
[313297475,1707112233534,-152.46,0.00043553,2]
[313297476,1707112233544,-300.0,0.000436,19]
[313297477,1707112233553,-328.84,0.0004362,2]
[313297478,1707112233562,-156.90293306,0.00043682,2]
[313297479,1707112233572,-248.0,0.0004369,2]
[313297480,1707112233582,-1581.56627263,0.0004369,30]
[313297481,1707112233591,-1000.0,0.000437,4]
[313297482,1707112233601,-173.89825056,0.00043725,20]
[313297483,1707112233611,-3469.1969086,0.00043735,18]
[313297484,1707112233620,-160.58935192,0.00043735,18]
[313297485,1707112233629,-195.90334972,0.00043735,18]
[313297486,1707112233639,-2000.0,0.00043735,4]
[313297487,1707112233648,-41856.0,0.0004379,2]
[313297488,1707112233657,-557.0,0.0004379,2]
[313297489,1707112233667,-54442.8291035,0.00043795,11]
[313297490,1707112233676,-1000.0,0.000438,2]
[313297491,1707112233685,-47637.4754656,0.00043805,11]
[313297492,1707112233695,-103118.100654,0.00043805,10]
[313297493,1707112233704,-27221.4145518,0.00043815,11]
[313297494,1707112233713,-103118.100654,0.00043825,10]
[313297495,1707112233723,-1030.0,0.00043835,7]
[313297496,1707112233732,-538.23220808,0.00043835,2]
[313297497,1707112233742,-542.23533524,0.00043835,2]
[313297498,1707112233751,-515.58265518,0.00043835,2]
[313297499,1707112233760,-536.94787428,0.00043835,2]
[313297500,1707112233769,-500.0,0.00043835,2]
[313297501,1707112233780,-517.03677607,0.00043835,2]
[313297502,1707112233789,-500.0,0.00043835,2]
[313297503,1707112233799,-547.85085198,0.00043835,2]
[313297504,1707112233807,-539.75916565,0.00043835,2]
[313297505,1707112233817,-518.38259589,0.00043835,2]
[313297506,1707112233826,-512.50111469,0.00043835,2]
[313297507,1707112233835,-213.20133293,0.00043835,2]
[313297508,1707112233844,-255.86123738,0.00043835,2]
[313297509,1707112233853,-520.85398482,0.00043835,2]
[313297510,1707112233863,-564.36743582,0.00043835,2]
[313297511,1707112233872,-516.77810386,0.00043835,2]
[313297512,1707112233881,-310.74655821,0.00043835,2]
[313297513,1707112233890,-521.2684887,0.00043835,2]
[313297514,1707112233899,-494.48928936,0.00043835,2]
[313297515,1707112233908,-500.0,0.00043835,2]
[313297516,1707112233918,-563.92996247,0.00043835,2]
[313297517,1707112233927,-475.06024089,0.00043835,2]
[313297518,1707112233937,-204.06579292,0.00043835,2]
[313297519,1707112233946,-202.05616906,0.00043835,2]
[313297520,1707112233955,-544.70537073,0.00043835,2]
[313297521,1707112233965,-535.47781787,0.00043835,2]
[313297522,1707112233974,-542.64447726,0.00043835,2]
[313297523,1707112233983,-500.0,0.00043835,2]
[313297524,1707112233992,-239.33700589,0.00043835,2]
[313297525,1707112234002,-500.0,0.00043835,2]
[313297526,1707112234011,-541.68788272,0.00043835,2]
[313297527,1707112234020,-500.0,0.00043835,2]
[313297528,1707112234030,-500.0,0.00043835,2]
[313297529,1707112234039,-500.0,0.00043835,2]
[313297530,1707112234048,-514.1008692,0.00043835,2]
[313297531,1707112234057,-500.0,0.00043835,2]
[313297532,1707112234066,-500.0,0.00043835,2]
[313297533,1707112234075,-522.4466835,0.00043835,2]
[313297534,1707112234084,-500.0,0.00043835,2]
[313297535,1707112234093,-504.13539804,0.00043835,2]
[313297536,1707112234103,-500.0,0.00043835,2]
[313297537,1707112234112,-284.80350186,0.00043835,2]
[313297538,1707112234121,-646.84849048,0.00043835,2]
[313297539,1707112234130,-500.0,0.00043835,2]
[313297540,1707112234140,-429.1142545,0.00043835,2]
[313297541,1707112234148,-514.7892272,0.00043835,2]
[313297542,1707112234158,-593.42,0.00043835,2]
[313297543,1707112234167,-188.6497124,0.00043835,2]
[313297544,1707112234176,-168.91615553,0.00043835,2]
[313297545,1707112234185,-517.84267309,0.00043835,2]
[313297546,1707112234194,-500.0,0.00043835,2]
[313297547,1707112234204,-500.0,0.00043835,2]
[313297548,1707112234213,-514.37964078,0.00043835,2]
[313297549,1707112234223,-512.97480988,0.00043835,2]
[313297550,1707112234232,-157.69947432,0.00043835,2]
[313297551,1707112234242,-184.71894828,0.00043835,2]
[313297552,1707112234251,-509.90218839,0.00043835,2]
[313297553,1707112234260,-369.18856625,0.00043835,2]
[313297554,1707112234270,-273.47340534,0.00043835,2]
[313297555,1707112234279,-508.21404373,0.00043835,2]
[313297556,1707112234288,-536.36961329,0.00043835,2]
[313297557,1707112234297,-194.61127976,0.00043835,10]
[313297558,1707112234306,-500.0,0.00043835,2]